Cogmind - Beta 14 *** ADVENTURER MODE // 2024.08.16 @ 14:40:21 Player: KURIIRI Result: Self-destructed Performance ------------- Evolutions (4) 2000 Regions Visited (11) 2200 Robots Destroyed (114) 570 Value Destroyed (3317) 3317 Prototype IDs (29) 580 Alien Tech Used (0) 0 Bonus (346) 346 TOTAL SCORE: 9013 Bonus ------- High Alert Combat Kills 46 Met Data Miner 300 Cogmind --------- Core Integrity 667/850 Matter 300/300 Energy 150/150 System Corruption 4% Temperature Cool (0) Movement Core (400) Ox7 Location -6/Factory Parts ------- > --- POWER (2) -------- Micro Nuclear Core > --- PROPULSION (4) --- Improved VTOL Module > --- UTILITY (6) ------ Medium Storage Unit Improved Sensor Array Advanced Signal Interpreter Improved Light Armor Plating Makeshift Hacking Suite > --- WEAPON (3) ------- Great Axe > --- INVENTORY (10) --- Improved Deuterium Engine Improved Sensor Array Advanced ECM Suite Reaction Control System Hacking Suite Component Analysis Suite Proton Cannon Proton Cannon Great Axe PL-3XN's Ring of Power Peak State ------------ > --- POWER ------------ Micro Nuclear Core Light Fission Core > --- PROPULSION ------- VTOL Module VTOL Module Improved VTOL Module Improved VTOL Module > --- UTILITY ---------- Medium Storage Unit Advanced Weight Redist. System Improved Sensor Array Advanced Signal Interpreter Improved Light Armor Plating Makeshift Hacking Suite > --- WEAPON ----------- Great Axe > --- INVENTORY -------- Improved Deuterium Engine Improved Sensor Array ECM Suite Reaction Control System Improved Light Armor Plating Hacking Suite Component Analysis Suite Proton Cannon Proton Cannon Great Axe [Rating: 47] Favorites ----------- Power Ion Engine Engine Ion Engine Power Core Light Nuclear Core Propulsion Improved VTOL Module Leg Aluminum Leg Hover Unit Gravmag System Flight Unit Improved VTOL Module Utility Large Storage Unit Device Advanced Weight Redist. System Storage Large Storage Unit Processor Visual Processing Unit Hackware Makeshift Hacking Suite Protection Improved Light Armor Plating Weapon Katana Energy Gun EM Pulse Gun Energy Cannon Advanced Beam Cannon Ballistic Gun Assault Rifle Ballistic Cannon Assault Cannon Launcher Rocket Launcher Special Weapon Plasma Cutter Impact Weapon Maul Slashing Weapon Katana Build | -11 -10 -10 -9 -8 -8 -7 -7 -7 -7 -6 -6 ------- Run | Yrd Mat Min Mat Mat Sto Fac Low Low Dat Pro Fac Slots Evolved 8 | . . . 2 2 . 2 . . . . 2 Power 1 | . . . . . . 1 . . . . . Propulsion 2 | . . . 1 1 . . . . . . . Utility 4 | . . . 1 . . 1 . . . . 2 Weapon 1 | . . . . 1 . . . . . . . Parts Attached 121 | 4 4 8 24 18 18 10 3 1 . 2 29 Power 14 | 1 . . 2 1 5 1 1 . . . 3 Engine 6 | 1 . . 2 . 3 . . . . . . Core 8 | . . . . 1 2 1 1 . . . 3 Reactor . | . . . . . . . . . . . . Propulsion 31 | 2 . 3 6 9 . 1 . . . . 10 Treads . | . . . . . . . . . . . . Leg 15 | 2 . 3 5 5 . . . . . . . Wheel . | . . . . . . . . . . . . Hover 2 | . . . . . . . . . . . 2 Flight 14 | . . . 1 4 . 1 . . . . 8 Utility 35 | 1 2 . 3 3 6 6 . 1 . 1 12 Device 17 | . . . . . 6 5 . 1 . . 5 Storage 5 | 1 2 . 1 1 . . . . . . . Processor 4 | . . . 1 . . . . . . . 3 Hackware 2 | . . . . 1 . . . . . . 1 Protection 7 | . . . 1 1 . 1 . . . 1 3 Artifact . | . . . . . . . . . . . . Weapon 41 | . 2 5 13 5 7 2 2 . . 1 4 Energy Gun 12 | . 2 1 . 4 3 . 1 . . . 1 Energy Cannon 2 | . . . 2 . . . . . . . . Ballistic Gun 3 | . . 2 1 . . . . . . . . Ballistic Cannon 3 | . . . . . 1 . 1 . . . 1 Launcher 2 | . . . . . . 2 . . . . . Special Weapon 4 | . . . 4 . . . . . . . . Impact Weapon 7 | . . . 4 1 1 . . . . . 1 Slashing Weapon 8 | . . 2 2 . 2 . . . . 1 1 Piercing Weapon . | . . . . . . . . . . . . Special Melee Weapon . | . . . . . . . . . . . . Unidentified Prototypes 7 | . . . 1 2 2 . . . . . 2 Parts Lost 25 | . . 3 2 3 3 3 . . . 1 10 Power 5 | . . . . . 2 2 . . . . 1 Propulsion 13 | . . 1 1 1 . 1 . . . 1 8 Utility 4 | . . . . 2 1 . . . . . 1 Weapon 3 | . . 2 1 . . . . . . . . Highest Loss Streak 6 | . . 3 1 1 2 3 . . . 1 6 To Critical Strikes . | . . . . . . . . . . . . Average Slot Usage (%) 82 | . 81 78 79 94 86 77 82 84 84 82 76 Engine 5 | . 14 10 6 7 1 . . . . . . Core 3 | . . . . 1 6 8 7 7 7 7 8 Leg 16 | . 28 27 30 30 . . . . . . . Flight 12 | . . . . 4 36 30 30 30 30 29 20 Device 4 | . . . . . 4 8 7 9 15 10 11 Storage 10 | . 14 14 16 9 9 7 7 7 7 7 6 Processor 4 | . . . 1 9 9 7 7 7 7 7 6 Hackware 2 | . . . . 4 3 . . . . . 6 Protection 3 | . . . 5 1 . 5 7 4 . 4 5 Energy Gun 7 | . 24 16 . 13 10 . . . . . . Energy Cannon 1 | . . . 3 3 . . . . . . . Ballistic Gun 2 | . . 5 8 . . . . . . . . Impact Weapon 1 | . . . 3 1 1 . . . . . . Slashing Weapon 4 | . . 3 . 7 5 7 7 7 7 7 5 Peak Build Rating 47 | 4 7 7 16 36 36 36 36 33 33 34 47 Average Rating 24 | 2 5 5 9 27 31 31 32 32 33 32 42 On Entrance 20 | . 4 6 6 16 32 27 27 33 33 33 29 Naked Turns . | . . . . . . . . . . . . Heaviest Build 37 | 10 29 29 37 37 25 25 25 25 24 25 31 Greatest Support 58 | 20 20 20 33 58 20 26 25 25 25 25 27 Greatest Overweight (x) 2 | . 1 2 2 1 1 1 . . . 1 2 Average Overweight (x) . | . . 1 . . . . . . . . . Largest Inventory Capacity 15 | 8 15 15 15 15 10 10 10 10 10 10 10 Average Capacity 12 | 6 12 15 15 14 10 10 10 10 10 10 10 Most Carried 15 | 4 9 13 15 15 10 10 7 10 10 10 10 Average Carried 9 | 2 5 9 12 12 7 7 6 8 10 9 9 Final Capacity 15 | 8 15 15 15 10 10 10 10 10 10 10 10 Final Carried 12 | 3 9 12 10 8 10 7 7 10 10 10 10 Class Distribution -------------------- 29% | Scavenger-Mutant 28% | Mutant 17% | Hacker-Mutant 10% | Sprinter 8% | Hacker-Sprinter 5% | Scavenger-Sprinter Dominant Class ---------------- Mutant | -10/Materials Mutant | -10/Mines Scavenger-Mutant | -9/Materials Scavenger-Mutant | -8/Materials Sprinter | -8/Storage Sprinter | -7/Factory Sprinter | -7/Lower Caves Sprinter | -7/Lower Caves Scavenger-Sprinter | -7/Data Miner Scavenger-Sprinter | -6/Proximity Caves Hacker-Mutant | -6/Factory Resources | -11 -10 -10 -9 -8 -8 -7 -7 -7 -7 -6 -6 ----------- Run | Yrd Mat Min Mat Mat Sto Fac Low Low Dat Pro Fac Matter Collected 2044 | 240 46 139 408 220 223 56 67 148 . 180 317 Remotely . | . . . . . . . . . . . . Salvage Created 4423 | . 307 281 920 1224 602 236 . 35 . 157 661 Parts 232 | . 23 24 39 58 34 16 . 1 . 4 33 Haulers Intercepted 13 | . 1 . 3 4 1 1 . . . . 3 Recyclers Shooed . | . . . . . . . . . . . . Parts Field Recycled . | . . . . . . . . . . . . Retrieved Matter . | . . . . . . . . . . . . Parts Self-Destructed 8 | . . . . . . . . . . 8 . Prevented 5 | . . . . . . . . 3 . 2 . Kills | -11 -10 -10 -9 -8 -8 -7 -7 -7 -7 -6 -6 ------- Run | Yrd Mat Min Mat Mat Sto Fac Low Low Dat Pro Fac Combat Hostiles Destroyed 87 | . 8 11 18 17 11 8 . . . 4 10 Melee 29 | . . 3 4 5 5 2 . . . . 10 Guns 38 | . 7 7 9 9 6 . . . . . . Cannons 6 | . . . 1 1 . . . . . 4 . AOE 7 | . . 1 . . . 6 . . . . . Classes Destroyed 14 | . 4 . 4 2 . 1 . 1 . 1 1 Worker 3 | . . . 2 1 . . . . . . . Hauler 13 | . 1 . 3 4 1 1 . . . . 3 Recycler 2 | . . . . 2 . . . . . . . Minesweeper 1 | . . . . . . . . 1 . . . Operator 1 | . . . . . . 1 . . . . . Watcher 7 | . 2 . 2 2 . . . . . . 1 Swarmer 32 | . 6 7 4 2 . 6 . . . . 7 Grunt 30 | . 2 4 8 8 5 2 . . . 1 . Brawler 2 | . . . 1 . . . . . . 1 . Duelist 2 | . . . 1 1 . . . . . . . Sentry 14 | . . . 4 3 6 . . . . . 1 Hunter 3 | . . . . 3 . . . . . . . Programmer 2 | . . . . . . . . . . . 2 Thug 1 | . . . . . . . . . . 1 . Mutant 1 | . . . . . . . . . . 1 . Best Kill Streak 7 | . 3 6 6 6 4 7 . 1 . 3 3 Combat Bots Only 6 | . 3 6 6 3 4 6 . . . 3 3 Max Kills in Single Turn 3 | . 1 1 1 2 1 3 . 1 . 1 1 Gunslinging . | . . . . . . . . . . . . Exploded 3 | . . 1 . . . 3 . . . . . Melee 1 | . . 1 1 1 1 1 . . . . 1 Uniques/NPCs Destroyed . | . . . . . . . . . . . . Combat | -11 -10 -10 -9 -8 -8 -7 -7 -7 -7 -6 -6 -------- Run | Yrd Mat Min Mat Mat Sto Fac Low Low Dat Pro Fac Hostile Shots Fired 640 | . 24 63 70 104 63 104 . 3 . 40 169 Missed 216 | . 4 12 21 28 18 48 . 3 . 21 61 Damage Taken 4142 | . 147 392 526 764 535 547 . . . 266 965 Core 826 | . 29 86 63 119 125 130 . . . 91 183 Absorbed by Shields . | . . . . . . . . . . . . Ignored by Resistances 1230 | . 48 120 156 222 152 171 . . . 73 288 Regen/Repaired (Parts) 175 | . . . . . . . . . . . 175 Core Remaining (%) 72 | 100 . 54 84 . 55 . . . . 68 . Volleys Fired 161 | . 15 16 42 34 16 6 . . . 32 . Largest 2 | . 2 2 2 2 2 1 . . . 1 . Hottest 124 | . 80 80 68 124 122 33 . . . 44 . Shots Fired 264 | . 30 26 70 68 32 6 . . . 32 . Gun 209 | . 30 26 55 66 32 . . . . . . Cannon 36 | . . . 2 2 . . . . . 32 . Launcher 6 | . . . . . . 6 . . . . . Special 13 | . . . 13 . . . . . . . . Kinetic 94 | . . 7 55 . . . . . . 32 . Thermal 115 | . . . 15 68 32 . . . . . . Explosive 6 | . . . . . . 6 . . . . . Electromagnetic 49 | . 30 19 . . . . . . . . . Robot Hit Streak 28 | . 8 17 12 15 28 4 . . . 15 . Robot Miss Streak 3 | . 2 3 3 2 2 1 . . . 2 . Penetration Max . | . . . . . . . . . . . . Secondary Targets 3 | . 1 . 1 . 1 . . . . . . Max Gunslinging Chain 1 | . 1 . 1 . 1 . . . . . . Shots Hit Robots 334 | . 22 21 68 82 43 13 . 8 . 28 49 Core Hits 135 | . 13 11 24 32 13 18 . 1 . 6 17 Critical Kills 1 | . . . 1 . . . . . . . . Critical Parts Destroyed 9 | . . . 8 . 1 . . . . . . Critical Strikes 30 | . 2 . 10 8 4 . . . . 2 4 Burn 5 | . . . . 3 2 . . . . . . Blast 2 | . . . . . . . . . . 2 . Corrupt 2 | . 2 . . . . . . . . . . Smash 11 | . . . 10 . 1 . . . . . . Sever 10 | . . . . 5 1 . . . . . 4 Melee Attacks 205 | . . 10 17 40 37 17 . 8 . . 76 Impact 35 | . . . 17 4 13 . . . . . 1 Slashing 170 | . . 10 . 36 24 17 . 8 . . 75 Piercing . | . . . . . . . . . . . . Sneak Attacks 20 | . . . 2 9 2 2 . 2 . . 3 Combat Hostiles 3 | . . . . 2 1 . . . . . . Follow-up Attacks . | . . . . . . . . . . . . Damage Inflicted 9532 | . 309 354 1429 2401 1285 800 . 353 . 694 1907 Guns 2531 | . 309 194 564 980 484 . . . . . . Cannons 737 | . . . 22 21 . . . . . 694 . Explosions 431 | . . 31 . . . 400 . . . . . Melee 5713 | . . 129 723 1400 801 400 . 353 . . 1907 Ramming . | . . . . . . . . . . . . Kinetic 1314 | . . 56 564 . . . . . . 694 . Thermal 1658 | . . 31 142 1001 484 . . . . . . Explosive 400 | . . . . . . 400 . . . . . Electromagnetic 447 | . 309 138 . . . . . . . . . Impact 1148 | . . . 723 76 349 . . . . . . Slashing 4565 | . . 129 . 1324 452 400 . 353 . . 1907 Piercing . | . . . . . . . . . . . . Highest Corruption 4 | . 2 2 1 1 2 . . . . . 4 Average Corruption 2 | . 1 2 1 1 1 . . . . . 3 Corruption Purged . | . . . . . . . . . . . . Corruption Blocked . | . . . . . . . . . . . . Effects 48 | . 4 8 6 . 5 . . . . . 25 Message Errors 14 | . 2 2 3 . 1 . . . . . 6 Matter Fused 11 | . 1 . 2 . . . . . . . 8 Heat Flow Errors 5 | . . 2 . . . . . . . . 3 Energy Discharges 4 | . . . . . . . . . . . 4 Parts Rejected 1 | . . 1 . . . . . . . . . Data Loss (minor) 8 | . . 2 1 . 3 . . . . . 2 Data Loss (major) 1 | . . . . . . . . . . . 1 Misfires 1 | . . 1 . . . . . . . . . Alerts 3 | . 1 . . . 1 . . . . . 1 Overload Shots . | . . . . . . . . . . . . Overflow Damage 760 | . . . 367 115 54 16 . 110 . . 98 Projectiles 29 | . . . . 29 . . . . . . . Explosions . | . . . . . . . . . . . . Melee 731 | . . . 367 86 54 16 . 110 . . 98 Knockbacks 8 | . . . 2 2 . . . . . 4 . Impact 3 | . . . 2 1 . . . . . . . Kinetic 4 | . . . . . . . . . . 4 . Secondary 1 | . . . . 1 . . . . . . . Self-Inflicted Damage 8 | . . . . . . 8 . . . . . Shots 1 | . . . . . . 1 . . . . . Rammed . | . . . . . . . . . . . . Targets Rammed . | . . . . . . . . . . . . Kicked . | . . . . . . . . . . . . Crushed . | . . . . . . . . . . . . Highest Temperature 558 | . 144 258 28 354 558 8 . . . 26 249 Average Temperature 95 | . 43 65 14 97 192 3 . . . 6 96 Received Heat Transfer 1503 | . 72 216 198 351 315 81 . . . 111 159 Effects 11 | . . . . 1 10 . . . . . . Shutdowns 2 | . . . . . 2 . . . . . . Energy Bleed 2 | . . . . . 2 . . . . . . Matter Decay 3 | . . . . . 3 . . . . . . Short Circuit 1 | . . . . 1 . . . . . . . Damage (major) 3 | . . . . . 3 . . . . . . Siege Activations . | . . . . . . . . . . . . Robots Corrupted 8 | . 1 . 5 2 . . . . . . . Combat Hostiles 7 | . 1 . 4 2 . . . . . . . Parts Fried 17 | . 2 . 15 . . . . . . . . Impact Corruptions 15 | . . . 12 2 1 . . . . . . Robots Melted . | . . . . . . . . . . . . Combat Hostiles . | . . . . . . . . . . . . Parts Melted 8 | . . . 2 3 3 . . . . . . Heat Transferred 3565 | . . 50 444 2072 999 . . . . . . Parts Sabotaged . | . . . . . . . . . . . . Parts Stolen . | . . . . . . . . . . . . Parts Stripped . | . . . . . . . . . . . . Power Chain Reactions 1 | . . 1 . . . . . . . . . Alert | -11 -10 -10 -9 -8 -8 -7 -7 -7 -7 -6 -6 ------- Run | Yrd Mat Min Mat Mat Sto Fac Low Low Dat Pro Fac Peak Influence 499 | . 144 263 400 499 363 328 . . . . 362 Initial 179 | . . 47 37 104 175 105 . . . . 179 Average 190 | . 79 138 228 289 254 177 . . . . 153 Maximum Alert Level 2 | . . 1 2 2 1 1 . . . . 1 Low Security (%) 55 | 100 100 80 31 24 14 76 . . . . 73 Level 1 40 | . . 19 68 53 85 23 . . . . 26 Level 2 4 | . . . . 22 . . . . . . . Level 3 . | . . . . . . . . . . . . Level 4 . | . . . . . . . . . . . . Level 5 . | . . . . . . . . . . . . High Security . | . . . . . . . . . . . . Max Security . | . . . . . . . . . . . . Squads Dispatched 22 | . 2 . 1 5 5 1 . . . 1 7 Investigation 14 | . 2 . . 4 4 1 . . . . 3 Extermination 2 | . . . . . . . . . . . 2 Reinforcement 5 | . . . 1 1 1 . . . . . 2 Assault 1 | . . . . . . . . . . 1 . Garrison . | . . . . . . . . . . . . Intercept . | . . . . . . . . . . . . Searches Triggered . | . . . . . . . . . . . . Construction Impeded . | . . . . . . . . . . . . Haulers Reinforced 1 | . . . . . . . . . . . 1 Active Scanning Responses . | . . . . . . . . . . . . Cargo Convoy Interrupts 1 | . . . . . . . . . . . 1 Stealth | -11 -10 -10 -9 -8 -8 -7 -7 -7 -7 -6 -6 --------- Run | Yrd Mat Min Mat Mat Sto Fac Low Low Dat Pro Fac Distress Signals 8 | . . . 2 4 1 1 . . . . . Communications Jammed . | . . . . . . . . . . . . Distress Signals . | . . . . . . . . . . . . Times Spotted 199 | . 11 14 29 38 19 13 3 7 . 42 23 Peak Tracking Total 13 | . 3 4 4 6 6 10 4 7 . 13 5 Tactical Retreats 25 | . . 1 3 6 1 . . 3 . 6 5 Traps | -11 -10 -10 -9 -8 -8 -7 -7 -7 -7 -6 -6 ------- Run | Yrd Mat Min Mat Mat Sto Fac Low Low Dat Pro Fac Traps Triggered 3 | . 1 . . 1 . 1 . . . . . Indirectly . | . . . . . . . . . . . . Trap Hack Attempts . | . . . . . . . . . . . . Triggered . | . . . . . . . . . . . . Disarmed . | . . . . . . . . . . . . Reprogrammed . | . . . . . . . . . . . . Reused 2 | . . . 1 . . . . . . 1 . Traps Extracted . | . . . . . . . . . . . . Installed 4 | . . 1 1 . . . . . . 2 . Triggered 7 | . . . 1 . . . . 4 . 1 1 Most Traps Carried 2 | . . 2 2 . . . . 2 2 2 . Machines | -11 -10 -10 -9 -8 -8 -7 -7 -7 -7 -6 -6 ---------- Run | Yrd Mat Min Mat Mat Sto Fac Low Low Dat Pro Fac Machines Disabled 5 | . . 1 1 1 1 1 . . . . . Max in Single Turn 1 | . . 1 1 1 1 1 . . . . . Garrison Access 2 | . . . . 1 1 . . . . . . Machines Repaired . | . . . . . . . . . . . . Machines Dismantled 1 | . . . 1 . . . . . . . . Machines Sabotaged . | . . . . . . . . . . . . Overloaded Fab Kills . | . . . . . . . . . . . . Hacking | -11 -10 -10 -9 -8 -8 -7 -7 -7 -7 -6 -6 --------- Run | Yrd Mat Min Mat Mat Sto Fac Low Low Dat Pro Fac Machines Accessed 37 | . 5 . 1 9 7 1 . . 4 . 10 Terminals 26 | . 5 . 1 6 6 1 . . . . 7 Fabricators . | . . . . . . . . . . . . Repair Stations 1 | . . . . . . . . . . . 1 Recycling Units 2 | . . . . 1 . . . . . . 1 Scanalyzers 2 | . . . . 1 . . . . . . 1 Garrison Access 2 | . . . . 1 1 . . . . . . Total Hacks 126 | . 14 . 3 31 19 2 . . 31 . 26 Successful 87 | . 8 . 2 15 14 . . . 31 . 17 Failed 39 | . 6 . 1 16 5 2 . . . . 9 Catastrophic 5 | . 3 . . . . 1 . . . . 1 Database Lockouts . | . . . . . . . . . . . . Manual 56 | . 14 . 2 22 9 . . . . . 9 Terminals 75 | . 14 . 3 23 17 2 . . . . 16 Fabricators . | . . . . . . . . . . . . Repair Stations 5 | . . . . . . . . . . . 5 Recycling Units 3 | . . . . 2 . . . . . . 1 Scanalyzers 9 | . . . . 5 . . . . . . 4 Garrison Access 3 | . . . . 1 2 . . . . . . Terminal Hacks 71 | . 8 . 2 9 13 . . . 31 . 8 Record 14 | . 2 . . 1 . . . . 11 . . Part Schematic 18 | . . . . 2 2 . . . 13 . 1 Robot Schematic 4 | . . . . . . . . . 4 . . Robot Analysis 9 | . 4 . 1 2 2 . . . . . . Prototype ID Bank 9 | . 1 . 1 1 2 . . . 3 . 1 Open Door 1 | . . . . . 1 . . . . . . Open DSF 1 | . . . . . . . . . . . 1 Branch Access Points 2 | . . . . 1 . . . . . . 1 Terminal Index 2 | . . . . . 1 . . . . . 1 Unreport Threat 2 | . . . . . 2 . . . . . . Locate Traps 1 | . . . . . . . . . . . 1 Recall Investigation 1 | . 1 . . . . . . . . . . Recall Reinforcements 2 | . . . . 1 . . . . . . 1 Registered Components 1 | . . . . . . . . . . . 1 Zone Layout 4 | . . . . 1 3 . . . . . . Fabricator Hacks . | . . . . . . . . . . . . Repair Station Hacks 4 | . . . . . . . . . . . 4 Scan Component 2 | . . . . . . . . . . . 2 Repair 2 | . . . . . . . . . . . 2 Recycling Unit Hacks 1 | . . . . . . . . . . . 1 Report Inventory 1 | . . . . . . . . . . . 1 Scanalyzer 9 | . . . . 5 . . . . . . 4 Insert Component 5 | . . . . 3 . . . . . . 2 Analyze 4 | . . . . 2 . . . . . . 2 Garrison Access Hacks 2 | . . . . 1 1 . . . . . . Seal Access 2 | . . . . 1 1 . . . . . . Unauthorized Hacks . | . . . . . . . . . . . . Terminals . | . . . . . . . . . . . . Fabricators . | . . . . . . . . . . . . Repair Stations . | . . . . . . . . . . . . Recycling Units . | . . . . . . . . . . . . Scanalyzers . | . . . . . . . . . . . . Garrison Access . | . . . . . . . . . . . . Data Cores Recovered . | . . . . . . . . . . . . Used . | . . . . . . . . . . . . Hacking Detections 26 | . 5 . 1 8 4 1 . . . . 7 Full Trace Events 15 | . 3 . . 4 4 1 . . . . 3 Feedback Events 3 | . 1 . . 1 1 . . . . . . Corruption 3 | . 1 . . 1 1 . . . . . . Feedback Blocked . | . . . . . . . . . . . . Robot Schematics Acquired 4 | . . . . . . . . . 4 . . Robots Built . | . . . . . . . . . . . . Authchips . | . . . . . . . . . . . . Time . | . . . . . . . . . . . . Total Robot Build Rating . | . . . . . . . . . . . . Part Schematics Acquired 22 | . . . . 4 2 . . . 13 . 3 Parts Built . | . . . . . . . . . . . . Authchips . | . . . . . . . . . . . . Time . | . . . . . . . . . . . . Total Part Build Rating . | . . . . . . . . . . . . Parts Repaired 2 | . . . . . . . . . . . 2 Time 49 | . . . . . . . . . . . 49 Parts Recycled . | . . . . . . . . . . . . Recycled Matter . | . . . . . . . . . . . . Retrieved Matter . | . . . . . . . . . . . . Retrieved Components . | . . . . . . . . . . . . Parts Scanalyzed 4 | . . . . 2 . . . . . . 2 Part Schematics Acquired 4 | . . . . 2 . . . . . . 2 Parts Damaged . | . . . . . . . . . . . . Bothacking | -11 -10 -10 -9 -8 -8 -7 -7 -7 -7 -6 -6 ------------ Run | Yrd Mat Min Mat Mat Sto Fac Low Low Dat Pro Fac Used RIF Installer . | . . . . . . . . . . . . Robots Hacked . | . . . . . . . . . . . . Non-combat . | . . . . . . . . . . . . Combat . | . . . . . . . . . . . . Robot Hacks Applied . | . . . . . . . . . . . . Relay Couplers Released . | . . . . . . . . . . . . Fabnet Peak Effective % . | . . . . . . . . . . . . Robots Rewired . | . . . . . . . . . . . . Allies Hacked . | . . . . . . . . . . . . Hacks Repelled . | . . . . . . . . . . . . Allies | -11 -10 -10 -9 -8 -8 -7 -7 -7 -7 -6 -6 -------- Run | Yrd Mat Min Mat Mat Sto Fac Low Low Dat Pro Fac Total Allies . | . . . . . . . . . . . . Largest Group . | . . . . . . . . . . . . Highest-Rated Group . | . . . . . . . . . . . . Highest-Rated Ally . | . . . . . . . . . . . . Total Orders 5 | . . . . . 2 2 . . . . 1 ROAM 1 | . . . . . 1 . . . . . . EXPLORE 4 | . . . . . 1 2 . . . . 1 Ally Attacks . | . . . . . . . . . . . . Total Damage . | . . . . . . . . . . . . Kills . | . . . . . . . . . . . . Allies Corrupted . | . . . . . . . . . . . . Allies Melted . | . . . . . . . . . . . . Intel | -11 -10 -10 -9 -8 -8 -7 -7 -7 -7 -6 -6 ------- Run | Yrd Mat Min Mat Mat Sto Fac Low Low Dat Pro Fac Robot Analysis Total 9 | . 4 . 1 2 2 . . . . . . Derelict Logs Recovered 3 | . . . . . . . 2 . . 1 . Drone Launches 12 | . . . . . 6 4 . . . . 2 Drone Recoveries 1 | . . . . . 1 . . . . . . Exploration | -11 -10 -10 -9 -8 -8 -7 -7 -7 -7 -6 -6 ------------- Run | Yrd Mat Min Mat Mat Sto Fac Low Low Dat Pro Fac Turns Passed 5748 | 65 587 517 1060 981 382 137 119 104 25 276 1495 Spaces Moved 4522 | 57 334 215 386 630 328 217 435 217 94 613 996 Core 20 | 19 . . . . . 1 . . . . . Treads . | . . . . . . . . . . . . Legs 1378 | 38 334 215 386 405 . . . . . . . Wheels . | . . . . . . . . . . . . Hover 8 | . . . . . . . . . . . 8 Flight 3116 | . . . . 225 328 216 435 217 94 613 988 Fastest Speed 26 | 50 120 190 120 26 26 26 26 26 26 26 29 Average Speed 76 | 96 157 192 185 91 27 27 26 26 26 26 68 Slowest Speed 260 | 120 190 260 260 190 98 100 26 26 26 99 175 Overloaded Moves . | . . . . . . . . . . . . Propulsion Burnouts . | . . . . . . . . . . . . Robots Hopped 11 | . . . . 2 2 . . . . 5 2 Cave-ins Triggered . | . . . . . . . . . . . . Exploration Rate (%) 44 | 3 56 39 35 53 60 7 64 45 77 72 24 Regions Visited 11 Branch Regions 6 Pre-discovered Areas 2 | . . . . . . . 1 . 1 . . Known Exits Taken 2 | . . . . 1 . . . . . 1 . Unknown Exits Taken 9 | 1 1 1 1 . 1 1 1 1 1 . . Scrap Searched 6 | . . . . . . . 1 2 . 3 . Spaces Dug 45 | . . . . 2 14 12 . . . . 17 Terrain Destroyed 82 | . . 18 . 2 14 31 . . . . 17 Melee 38 | . . . . 2 14 5 . . . . 17 Projectile . | . . . . . . . . . . . . AOE 44 | . . 18 . . . 26 . . . . . Terrain Rammed . | . . . . . . . . . . . . Walls Destroyed . | . . . . . . . . . . . . Machines Disabled . | . . . . . . . . . . . . Actions | -11 -10 -10 -9 -8 -8 -7 -7 -7 -7 -6 -6 --------- Run | Yrd Mat Min Mat Mat Sto Fac Low Low Dat Pro Fac Total 6150 | 67 366 273 579 908 527 265 440 252 93 693 1687 Wait 933 | . . 10 60 145 105 6 . 22 . 35 550 Move 4490 | 56 333 214 385 625 323 216 434 216 93 603 992 Hop 10 | . . . . 2 2 . . . . 4 2 Pick Up 114 | 7 11 10 17 23 10 5 2 4 . 6 19 Fast Attach 15 | . . . 1 3 3 . . . . 1 7 Attach 81 | 4 3 5 14 11 12 8 3 1 . 1 19 Detach 16 | . . . 1 1 6 1 1 . . 1 5 Swap 25 | . 1 3 9 4 3 2 . . . . 3 Drop 79 | . 3 4 14 20 10 4 . 1 . 8 15 Fire 161 | . 15 16 42 34 16 6 . . . 32 . Melee 204 | . . 10 17 40 37 17 . 8 . . 75 Ram . | . . . . . . . . . . . . Kick . | . . . . . . . . . . . . Crush . | . . . . . . . . . . . . Escape Stasis . | . . . . . . . . . . . . Rewire . | . . . . . . . . . . . . Trap 4 | . . 1 1 . . . . . . 2 . Miscellaneous 18 | . . . 18 . . . . . . . . Route ------- -11/Scrapyard -10/Materials (discovered 3 exits: *Mat / [*Min x2]) -10/Mines -9/Materials -8/Materials (discovered 2 exits: *Fac / *Sto) -8/Storage -7/Factory -7/Lower Caves -7/Lower Caves -7/Data Miner -6/Proximity Caves -6/Factory (discovered 2 exits: Low x2) History --------- Turn | Location | Event 3 | -11/Scrapyard | Discovered new exit (range 16) 66 | -11/Scrapyard | Entered Materials 177 | -10/Materials | Discovered new exit (range 16) 302 | -10/Materials | Build established: Mutant 389 | -10/Materials | Discovered new exit (range 13) 574 | -10/Materials | Discovered new exit (range 13) 653 | -10/Materials | Entered Mines 654 | -10/Mines | Met a Derelict bent on vengeance 909 | -10/Mines | Found a hidden stash of uninstalled traps 928 | -10/Mines | Excavation squad dispatched 928 | -10/Mines | A large section of the Mines collapsed 1025 | -10/Mines | Lost 3 parts (1n2w) 1107 | -10/Mines | Discovered new exit (range 10) 1170 | -10/Mines | Entered Materials 1170 | -9/Materials | Evolved 2 slots: Propulsion x1, Utility x1 1926 | -9/Materials | Build established: Scavenger-Mutant 2105 | -9/Materials | Discovered new exit (range 16) 2230 | -9/Materials | Entered another Materials area 2230 | -8/Materials | Evolved 2 slots: Propulsion x1, Weapon x1 2889 | -8/Materials | Identified exit to Storage 3028 | -8/Materials | Discovered new exit (range 4) 3211 | -8/Materials | Entered Storage 3571 | -8/Storage | Discovered new exit (range 18) 3572 | -8/Storage | Met 01-MTF 3591 | -8/Storage | Lost 3 allies 3593 | -8/Storage | Entered Factory 3593 | -7/Factory | Accompanied by 1 ally (01-MTF) 3593 | -7/Factory | Evolved 2 slots: Power x1, Utility x1 3596 | -7/Factory | 01-MTF left 3660 | -7/Factory | Lost 4 allies 3685 | -7/Factory | Build established: Sprinter 3720 | -7/Factory | Discovered new exit (range 16) 3730 | -7/Factory | Entered Lower Caves 3735 | -7/Lower Caves | Learned location of Zion (-6) 3744 | -7/Lower Caves | Lost 3 parts (2p1n) 3788 | -7/Lower Caves | Encountered a Warlord checkpoint 3830 | -7/Lower Caves | Discovered new exit (range 10) 3842 | -7/Lower Caves | Learned location of 1 exit from Proximity Caves 3849 | -7/Lower Caves | Entered another Lower Caves area 3945 | -7/Lower Caves | Discovered new exit (range 14) 3953 | -7/Lower Caves | Entered Data Miner 3953 | -7/Data Miner | Discovered new exit (range 6) 3958 | -7/Data Miner | Met Data Miner 3968 | -7/Data Miner | Learned location of Section 7 (-3) 3968 | -7/Data Miner | Acquired the access code to Warlord's prototype stash 3972 | -7/Data Miner | Received God Mode back door access code from Data Miner 3978 | -7/Data Miner | Entered Proximity Caves 3979 | -6/Proximity Caves | Identified exit to Factory 3981 | -6/Proximity Caves | Attacked by a faux Warlord 4216 | -6/Proximity Caves | Learned 4 Factory zone layouts 4247 | -6/Proximity Caves | Attracted the attention of an 0b10 outpost 4254 | -6/Proximity Caves | Entered Factory 4254 | -6/Factory | Evolved 2 slots: Utility x2 4383 | -6/Factory | Repaired Imp. VTOL Module 4452 | -6/Factory | Repaired Imp. Light Armor Plating 4557 | -6/Factory | Found Prototype Processor 4558 | -6/Factory | Identified Exp. Targeting Computer 4565 | -6/Factory | Identified exit to Lower Caves 4849 | -6/Factory | Build established: Hacker-Mutant 5280 | -6/Factory | Cargo convoy interrupted 5509 | -6/Factory | Lost 3 parts (3n) 5748 | -6/Factory | Found PL-3XN's Ring of Power 5749 | -6/Factory | Self-destructed Last Messages --------------- 05610_ 72Z|W6P7I BQS>,JSFOGICV9H %UACO 05624_ U-05 Engineer builds a Wall. 05661_ System corrupted: Energy discharge (-58). 05705_ S-27 Virus destroyed. 05713_ System corrupted: Energy discharge (-69). 05720_ Adv. Weight Redist. System destroyed. 05720_ S-27 Virus destroyed. 05727_ Acquired 27 matter. 05732_ Acquired Gravmag System. 05735_ Dropped VTOL Module. 05736_ Acquired Gravmag System. 05740_ U-05 Engineer works on Pressure Siphon. 05741_ Acquired 20 matter. 05741_ VTOL Module destroyed. 05745_ U-05 Engineer works on Pressure Siphon. 05746_ Gravmag System destroyed. 05747_ Lgt. Fission Core destroyed. 05747_ VTOL Module destroyed. 05748_ Acquired PL-3XN's Ring of Power. 05748_ Gravmag System destroyed. Map ----- +----------------------------------------------------+ | ?????????????????????????????????????????????????? | | ?????????????????????????????????????????????????? | | ?????????????????????????????????????????????????? | | ?????????????????????????????????????????????????? | | ?????????????????????????????????????????????????? | | ?????????????????????????????????????????????????? | | ?????????????????????????????????????????????????? | | ?????????????????????????????????????????????????? | | ?????????????????????????????????????????????????? | | ?????????????????????????????????????????????????? | | ?????????????????????????????????????????????????? | | ?????????????????????????????????????????????????? | | ?????????????????? ? ?????????t "????????????????? | | ???????????????? A????????? ????????????????? | | ?????????????? #????#### ""???????????????? | | ????????????? ??? """ ????????????? | | ????????????? ? """ ???????????? | | ????????????# u ???????????? | | ????????????# """ s ??????????? | | ???????????? """ ??????????? | | ??????????? u g """ ??????????? | | ??????????? <